bitfinex/quotes_SOLUSD_20250922
["timestamp","ask_amount","ask_price","bid_price","bid_amount"]
[1758556657269,3.3512639,221.11,221.05,22.31626164]
[1758556657426,4.95684268,221.11,221.05,22.31626164]
[1758556657627,1.60557878,221.11,221.05,22.31626164]
[1758556657837,1.60557878,221.11,221.05,13.59559401]
[1758556658939,1.60557878,221.11,221.06,4.52365873]
[1758556659251,1.73557878,221.11,221.06,4.52365873]
[1758556659547,37.17557878,221.11,221.06,4.52365873]
[1758556660129,35.57,221.11,221.06,4.52365873]
[1758556660337,35.57,221.11,221.05,18.11945738]
[1758556661441,0.2,221.1,221.05,19.72503616]
[1758556662350,0.2,221.1,221.05,20.40503616]
[1758556663154,0.33,221.1,221.05,19.72503616]
[1758556663647,0.2,221.1,221.05,6.12944215]
[1758556663851,0.33,221.09,221.04,4.52403281]
[1758556664179,0.2,221.09,221.04,4.52403281]
[1758556664454,0.2,221.09,221.04,5.20403281]
[1758556666136,0.2,221.09,221.05,0.68]
[1758556667365,0.33,221.08,221.03,1.60557878]
[1758556667955,0.33,221.08,221.03,2.28557878]
[1758556667956,0.2,221.08,221.03,2.28557878]
[1758556668467,0.2,221.08,221.03,6.80978441]
[1758556668641,0.2,221.08,221.03,5.20420563]
[1758556668837,0.2,221.08,221.03,4.52420563]
[1758556669150,0.2,221.08,221.04,0.68]
[1758556669449,0.2,221.08,221.04,3.18382178]
[1758556669638,3.372501,221.07,221.04,2.50382178]
[1758556669842,3.372501,221.06,221.04,2.50382178]
[1758556670046,3.372501,221.05,221.04,2.50382178]
[1758556670862,3.372501,221.05,221.04,7.70788982]
[1758556671065,3.372501,221.05,221.04,7.02788982]
[1758556671362,3.372501,221.05,221.04,4.52406804]
[1758556671553,3.372501,221.05,221.03,4.52426757]
[1758556671739,3.372501,221.04,221.03,4.52426757]
[1758556671940,3.372501,221.04,221.03,5.20426757]
[1758556672667,3.372501,221.07,221.03,5.20427272]
[1758556672870,3.372501,221.06,221.03,5.20427272]
[1758556673045,3.372501,221.05,221.03,5.20427272]
[1758556673366,3.372501,221.04,221.03,5.20427272]
[1758556673546,3.372501,221.07,221.03,5.20427272]
[1758556673742,3.572501,221.06,221.0,0.68]
[1758556674043,3.572501,221.06,221.01,2.50382178]
[1758556674044,3.372501,221.05,221.01,2.50382178]
[1758556674241,3.372501,221.04,221.01,3.18382178]
[1758556674449,3.372501,221.03,220.99,21.30450742]
[1758556674647,3.372501,221.02,221.0,0.68]
[1758556674862,3.372501,221.01,221.0,0.68]
[1758556675064,3.372501,221.05,221.0,5.20488687]
[1758556675268,3.38069882,221.04,221.0,5.20488687]
[1758556675450,3.38069882,221.03,221.0,5.20488687]
[1758556675756,3.38069882,221.02,220.99,7.02888353]
[1758556675939,3.38069882,221.01,220.98,37.92382178]
[1758556676140,41.36624594,221.06,220.98,37.92382178]
[1758556676141,0.2,221.03,220.99,0.68]
[1758556676349,3.38047487,221.02,220.99,0.68]
[1758556676549,0.2,221.03,220.99,0.68]
[1758556676758,0.2,221.03,220.98,7.02910601]
[1758556676944,0.2,221.03,220.99,0.68]
[1758556677144,0.2,221.03,221.0,0.72]
[1758556677347,0.2,221.03,220.98,7.02910601]
[1758556677348,3.38035904,221.02,221.01,0.72]
[1758556677761,0.2,221.03,221.01,0.72]
[1758556678064,3.58035904,221.03,221.02,0.72]
[1758556678754,0.2,221.03,221.02,5.24447742]
[1758556679157,3.58035904,221.03,221.02,5.24447742]
[1758556679662,0.2,221.03,221.02,0.72]
[1758556680037,3.58000472,221.03,221.02,0.72]
[1758556680242,0.2,221.03,221.02,5.24447742]
[1758556681265,3.58000472,221.03,221.02,5.24447742]
[1758556681444,0.2,221.03,221.02,5.24447742]
[1758556681867,3.58033447,221.03,221.0,4.52488687]
[1758556682061,3.38033447,221.02,221.01,0.72]
[1758556682364,0.2,221.03,221.02,0.72]
[1758556683064,3.58039478,221.03,221.02,0.72]
[1758556683246,0.2,221.03,221.02,0.72]
[1758556683449,0.2,221.03,221.0,0.72]
[1758556683754,3.58039478,221.03,220.98,5.24512426]
[1758556683960,3.38039478,221.02,220.98,4.52512426]
[1758556684167,0.2,221.03,220.99,0.72]
[1758556684375,0.2,221.03,220.98,4.52512426]
[1758556684555,0.2,221.03,220.99,0.72]
[1758556684755,0.2,221.03,221.0,0.72]
[1758556684956,0.2,221.03,220.98,4.52512426]
[1758556685265,0.2,221.02,220.99,0.72]
[1758556685467,0.2,221.02,221.0,0.72]
[1758556685669,3.37983662,221.04,221.01,3.22382178]
[1758556685968,3.04251276,221.08,221.04,13.59559401]
[1758556686261,3.38099922,221.07,221.05,0.72]
[1758556686569,3.04251276,221.13,221.06,13.59559401]
[1758556686893,3.38162631,221.12,221.07,0.72]
[1758556687173,3.38162631,221.11,221.08,4.5232495]
[1758556687374,0.1,221.14,221.1,2.50382178]
[1758556687553,3.38146023,221.13,221.11,0.72]
[1758556687859,3.38146023,221.12,221.1,2.50382178]
[1758556688061,3.38146023,221.11,221.1,2.50382178]
[1758556688264,3.38146023,221.13,221.1,3.22382178]
[1758556688468,3.38146023,221.12,221.11,0.72]
[1758556688644,6.42397299,221.12,221.11,0.72]
[1758556690158,6.42397299,221.12,221.09,5.24302556]
[1758556690360,3.38146023,221.11,221.1,0.72]
[1758556692173,3.38146023,221.11,221.04,13.59559401]
[1758556692356,0.2,221.1,221.06,0.72]
[1758556692563,6.08528201,221.1,221.05,4.52386337]
[1758556692875,3.38146023,221.09,221.06,0.72]
[1758556693066,0.2,221.1,221.06,0.72]
[1758556693067,3.38146023,221.08,221.06,0.72]
[1758556693380,3.38146023,221.07,221.04,18.11964202]
[1758556693561,0.2,221.1,221.05,0.72]
[1758556693761,3.58224286,221.1,221.06,0.72]
[1758556695173,3.58224286,221.1,221.06,5.20347204]
[1758556695372,3.58224286,221.1,221.07,0.68]
[1758556696374,3.58224286,221.1,221.06,7.02729382]
[1758556696577,3.58224286,221.1,221.06,4.52347204]
[1758556696884,3.58224286,221.1,221.07,0.68]
[1758556697079,0.2,221.09,221.07,4.52327898]
[1758556697372,0.2,221.09,221.08,0.68]
[1758556697762,0.2,221.09,221.07,5.20327898]
[1758556698153,0.2,221.09,221.08,0.68]
[1758556698354,0.13,221.08,221.02,0.68]
[1758556698555,5.88606464,221.08,221.02,0.68]
[1758556698771,3.38224286,221.07,221.02,0.68]
[1758556699078,3.24421334,221.09,221.03,4.52427272]
[1758556699079,3.38224286,221.06,221.03,4.52427272]
[1758556699280,3.58224286,221.05,221.04,0.68]
[1758556699976,0.2,221.05,221.03,4.52427272]
[1758556700158,0.2,221.05,221.04,0.68]
[1758556700963,0.2,221.05,221.04,3.18382178]
[1758556701168,0.2,221.05,221.04,7.70788982]
[1758556705473,0.2,221.05,221.04,5.20406804]
[1758556705774,0.2,221.05,221.04,7.70788982]
[1758556708668,0.2,221.05,221.04,4.52406804]
[1758556708884,0.2,221.05,221.04,18.11966205]
[1758556709061,0.2,221.05,221.04,13.59559401]
[1758556709259,0.2,221.05,221.04,18.11966205]
[1758556709785,0.2,221.05,221.04,18.79966205]
[1758556710786,0.2,221.05,221.04,18.11966205]
[1758556712290,0.2,221.05,221.04,18.79966205]
[1758556715096,0.2,221.05,221.04,21.30348383]
[1758556717668,3.58299406,221.09,221.04,32.61365393]
[1758556717888,3.58299406,221.09,221.05,0.68]
[1758556719591,3.58299406,221.09,221.04,20.62338418]
[1758556719796,3.58299406,221.09,221.06,0.68]
[1758556720199,3.58299406,221.09,221.06,5.20348972]
[1758556720584,3.58299406,221.09,221.06,4.52348972]
[1758556720901,0.2,221.08,221.06,4.52348972]
[1758556721792,0.2,221.08,221.05,4.52386337]
[1758556721985,0.2,221.08,221.05,5.20386337]
[1758556722594,0.33,221.08,221.04,18.11965747]
[1758556722796,3.71299406,221.08,221.04,18.11965747]
[1758556723309,6.21681584,221.08,221.04,18.11965747]
[1758556723600,3.38299406,221.07,221.04,18.11965747]
[1758556724808,0.2,221.06,221.03,13.59559401]
[1758556725004,3.58299406,221.06,221.03,14.27559401]
[1758556725199,3.38299406,221.05,221.03,0.68]
[1758556725393,3.38299406,221.04,221.03,0.68]
[1758556725595,3.58299406,221.06,221.03,0.68]
[1758556725783,3.58299406,221.06,221.02,4.52445207]
[1758556726122,3.58299406,221.06,221.03,0.68]
[1758556726921,3.58299406,221.06,221.03,5.20417864]
[1758556727522,3.38434844,221.05,221.03,5.20417864]
[1758556727695,3.38434844,221.04,221.03,5.20417864]
[1758556728378,3.58434844,221.06,221.03,5.20417864]
[1758556728609,3.58434844,221.06,221.03,0.68]
[1758556728791,3.58434844,221.06,221.02,4.52446325]
[1758556728995,3.58434844,221.06,221.03,0.68]
[1758556729807,2.50382178,221.04,220.99,13.59559401]
[1758556730010,5.88817022,221.03,220.99,13.59559401]
[1758556730313,3.38434844,221.02,220.99,14.27559401]
[1758556730603,3.38434844,221.02,221.0,2.28313708]
[1758556730912,0.2,221.05,221.01,5.20468214]
[1758556731085,3.38438006,221.04,221.02,0.68]
[1758556731285,3.38438006,221.03,221.02,0.68]
[1758556731499,3.38438006,221.03,221.0,0.68]
[1758556731709,3.38438006,221.02,221.01,0.68]
[1758556731956,3.38438006,221.03,221.01,0.68]
[1758556732114,3.38438006,221.02,221.01,0.68]
[1758556732612,3.38438006,221.04,221.01,0.68]
[1758556733006,3.38438006,221.04,221.02,0.68]
[1758556733991,4.98751714,221.04,221.02,0.68]
[1758556734190,3.38438006,221.03,221.01,13.59559401]
[1758556734499,26.2,221.05,221.01,13.59559401]
[1758556734710,3.38283793,221.04,221.02,0.68]
[1758556735709,0.2,221.03,221.02,5.2044409]
[1758556740125,3.3825321,221.04,221.02,5.2444409]
[1758556740337,0.2,221.07,221.03,15.91873109]
[1758556740618,0.2,221.07,221.06,15.19873109]
[1758556741010,0.2,221.07,221.06,15.91873109]
[1758556742209,0.2,221.07,221.06,20.44238982]
[1758556742896,0.2,221.07,221.06,18.83925274]
[1758556743098,0.2,221.07,221.06,20.44238982]
[1758556744218,0.2,221.07,221.06,18.83925274]
[1758556744422,0.2,221.07,221.06,20.44238982]
[1758556744604,3.38438932,221.09,221.07,13.59559401]
[1758556744805,1.80313708,221.11,221.07,14.31559401]
[1758556745120,3.58440246,221.1,221.08,0.72]
[1758556745317,3.38440246,221.09,221.08,15.19873109]
[1758556745508,0.2,221.1,221.09,13.59559401]
[1758556745704,0.2,221.1,221.08,1.60313708]
[1758556746015,3.58438798,221.1,221.09,0.72]
[1758556746313,0.2,221.1,221.09,5.24304491]
[1758556746514,0.2,221.1,221.09,0.72]
[1758556746717,0.2,221.1,221.08,4.52324922]
[1758556746915,0.2,221.1,221.07,18.11896233]
[1758556747109,0.2,221.1,221.07,18.83896233]
[1758556747508,0.2,221.1,221.08,0.72]
[1758556748219,0.2,221.1,221.09,4.52304491]
[1758556748427,0.2,221.1,221.09,6.84618199]
[1758556749305,0.2,221.1,221.09,5.24304491]
[1758556750116,0.2,221.1,221.07,18.83885765]
[1758556750298,0.2,221.1,221.08,0.72]
[1758556750703,0.2,221.1,221.09,0.72]
[1758556751824,0.2,221.1,221.09,5.24304491]
[1758556752200,0.2,221.1,221.09,0.72]
[1758556753604,0.2,221.1,221.09,14.31559401]
[1758556753819,0.2,221.1,221.09,18.83863892]
[1758556754226,0.2,221.1,221.09,20.441776]
[1758556756410,0.2,221.13,221.1,13.59559401]
[1758556756609,0.2,221.13,221.11,0.69]
[1758556756810,0.2,221.13,221.12,0.69]
[1758556757311,0.2,221.13,221.1,14.28559401]
[1758556757507,0.2,221.13,221.11,0.69]
[1758556758128,0.2,221.13,221.12,0.69]
[1758556758328,0.1,221.14,221.12,0.69]
[1758556758623,0.1,221.14,221.13,15.19873109]
[1758556758833,0.1,221.14,221.13,15.88873109]
[1758556760328,0.1,221.14,221.13,20.41095783]
[1758556764631,0.1,221.14,221.13,20.40847062]
[1758556768841,0.1,221.14,221.13,55.68847062]
[1758556770531,0.1,221.14,221.13,57.50150178]
[1758556771327,0.1,221.14,221.13,55.68847062]
[1758556771534,0.1,221.14,221.13,57.50150178]
[1758556776855,0.1,221.14,221.13,52.97927504]
[1758556777031,0.1,221.14,221.13,15.88624388]
[1758556777234,0.1,221.14,221.13,51.16624388]
[1758556777624,0.1,221.14,221.12,1.81303116]
[1758556777826,0.1,221.14,221.1,1.80913612]
[1758556777827,0.1,221.14,221.11,48.85559401]
[1758556778054,0.23,221.14,221.11,48.85559401]
[1758556778359,0.1,221.14,221.11,48.85559401]
[1758556778729,0.1,221.14,221.11,53.37805666]
[1758556778951,0.1,221.14,221.11,48.85559401]
[1758556779841,0.1,221.14,221.11,54.08816695]
[1758556781047,0.1,221.14,221.11,14.30559401]
[1758556781442,0.1,221.14,221.11,13.59559401]
[1758556781641,0.1,221.14,221.12,0.71]
[1758556781950,0.1,221.14,221.11,14.30559401]
[1758556782149,0.1,221.14,221.11,15.90624388]
[1758556782524,0.23,221.14,221.1,1.80913612]
[1758556782729,0.1,221.14,221.1,1.80913612]
[1758556782931,0.13,221.13,221.1,1.80913612]
[1758556786038,0.3,221.14,221.1,1.80913612]
[1758556786361,0.43,221.14,221.1,1.80913612]
[1758556788831,0.3,221.14,221.1,1.80913612]
[1758556789037,0.3,221.14,221.11,0.71]
[1758556790745,0.3,221.14,221.1,1.80913612]
[1758556790746,0.3,221.14,221.1,6.33194622]
[1758556791062,0.3,221.14,221.13,2.50251454]
[1758556791429,0.3,221.14,221.13,16.80810855]
[1758556791755,0.1,221.14,221.13,16.80810855]
[1758556792350,0.1,221.14,221.13,21.33033529]
[1758556793647,0.1,221.14,221.13,18.82782075]
[1758556798951,0.1,221.14,221.13,14.30559401]
[1758556800575,0.1,221.14,221.13,21.33033529]
[1758556802246,0.1,221.14,221.13,14.30559401]
[1758556802570,0.1,221.14,221.1,1.80913612]
[1758556803075,0.1,221.14,221.1,2.46913612]
[1758556803258,0.1,221.14,221.1,1.80913612]
[1758556803567,0.23,221.14,221.1,1.80913612]
[1758556803874,0.1,221.14,221.1,2.46913612]
[1758556804560,0.1,221.14,221.1,1.80913612]
[1758556804769,0.23,221.14,221.1,1.80913612]
[1758556804974,0.1,221.14,221.1,1.80913612]
[1758556805151,0.13,221.13,221.1,1.80913612]
[1758556805547,26.0,221.11,221.1,1.80913612]
[1758556805871,26.13,221.11,221.1,1.80913612]
[1758556806062,26.0,221.11,221.1,1.80913612]
[1758556806563,0.1,221.14,221.1,2.46913612]
[1758556806764,0.13,221.13,221.1,1.80913612]
[1758556806971,3.51680509,221.13,221.1,1.80913612]
[1758556807475,3.38680509,221.13,221.1,1.80913612]
[1758556807850,35.35,221.13,221.1,1.80913612]
[1758556808149,35.22,221.13,221.1,1.80913612]
[1758556808570,35.22,221.12,221.1,1.80913612]
[1758556808870,0.1,221.14,221.1,1.80913612]
[1758556809169,35.22,221.13,221.1,1.80913612]
[1758556809753,0.33,221.12,221.1,1.80913612]
[1758556809969,26.33,221.11,221.1,1.80913612]
[1758556810264,29.71534708,221.11,221.1,1.80913612]
[1758556811055,29.51534708,221.11,221.1,1.80913612]
[1758556811454,3.38534708,221.11,221.1,1.80913612]
[1758556811673,38.60534708,221.11,221.1,1.80913612]
[1758556811876,35.22,221.11,221.1,1.80913612]
[1758556812061,38.60293425,221.11,221.1,1.80913612]
[1758556812569,0.13,221.13,221.1,1.80913612]
[1758556812873,61.22,221.11,221.1,1.80913612]
[1758556813174,64.60217493,221.11,221.1,1.80913612]
[1758556813975,64.73217493,221.11,221.1,1.80913612]
[1758556814778,55.37091695,221.11,221.1,1.80913612]
[1758556814957,55.37091695,221.11,221.1,1.70913612]
[1758556817777,20.15091695,221.11,221.1,1.70913612]
[1758556818078,55.37091695,221.11,221.1,1.70913612]
[1758556818860,20.15091695,221.11,221.1,1.70913612]
[1758556819185,55.37091695,221.11,221.1,1.70913612]
[1758556820151,20.15091695,221.11,221.1,1.70913612]
[1758556820353,55.37091695,221.11,221.1,1.70913612]
[1758556822570,6.55532294,221.11,221.1,1.70913612]
[1758556822767,41.77532294,221.11,221.1,1.70913612]
[1758556825478,55.37091695,221.11,221.1,1.70913612]
[1758556827693,20.15091695,221.11,221.1,1.70913612]
[1758556827894,55.37091695,221.11,221.1,1.70913612]
[1758556828263,52.32776894,221.11,221.1,1.70913612]
[1758556828762,55.36054624,221.11,221.1,1.70913612]
[1758556829669,20.14054624,221.11,221.1,1.70913612]
[1758556829991,55.36054624,221.11,221.1,1.70913612]
[1758556830888,20.12763833,221.11,221.1,1.70913612]
[1758556831298,19.99763833,221.11,221.1,1.70913612]
[1758556831471,55.21763833,221.11,221.1,1.70913612]
[1758556832390,52.18486103,221.11,221.1,1.70913612]
[1758556833067,0.1,221.14,221.1,2.36913612]
[1758556833278,35.22,221.13,221.11,0.66]
[1758556833874,0.1,221.14,221.11,0.66]
[1758556834277,35.22,221.13,221.11,0.66]
[1758556838202,26.0,221.11,221.1,1.70913612]
[1758556838372,61.22,221.11,221.1,1.70913612]
[1758556839702,64.58966664,221.11,221.1,1.70913612]
[1758556840484,64.58966664,221.11,221.1,2.36913612]
[1758556840993,29.36966664,221.11,221.1,1.70913612]
[1758556841190,64.56966664,221.11,221.1,1.70913612]
[1758556841794,3.36966664,221.11,221.1,2.36913612]
[1758556842015,35.2,221.11,221.1,2.36913612]
[1758556842595,38.57426918,221.11,221.1,2.36913612]
[1758556842992,38.57426918,221.11,221.1,1.70913612]
[1758556843308,3.37426918,221.11,221.1,2.36913612]
[1758556843513,61.2,221.11,221.1,2.36913612]
[1758556843694,64.57426918,221.11,221.1,1.70913612]
[1758556844212,64.57426918,221.11,221.1,2.36913612]
[1758556845213,3.37426918,221.11,221.1,2.36913612]
[1758556845390,37.85426918,221.11,221.1,2.36913612]
[1758556845586,61.2,221.11,221.1,2.36913612]
[1758556846494,61.2,221.11,221.1,1.70913612]
[1758556847277,35.2,221.11,221.1,1.70913612]
[1758556847477,26.1,221.14,221.1,1.70913612]
[1758556847678,26.0,221.11,221.1,2.36913612]
[1758556847884,61.2,221.11,221.1,1.70913612]
[1758556848392,61.2,221.11,221.1,2.36913612]
[1758556848700,26.1,221.14,221.1,2.36913612]
[1758556848899,26.0,221.11,221.1,2.36913612]
[1758556849106,61.2,221.11,221.1,2.36913612]
[1758556850188,35.2,221.11,221.1,2.36913612]
[1758556852497,26.0,221.11,221.1,2.36913612]
[1758556852695,61.2,221.11,221.1,2.36913612]
[1758556853977,64.24609574,221.11,221.1,2.36913612]
[1758556854402,64.24609574,221.11,221.1,1.70913612]
[1758556855708,52.50168975,221.11,221.1,1.70913612]
[1758556856090,51.84168975,221.11,221.1,2.36913612]
[1758556856288,51.84168975,221.11,221.1,1.70913612]
[1758556856487,16.64168975,221.11,221.1,1.70913612]
[1758556856700,51.84168975,221.11,221.1,1.70913612]
[1758556857283,41.63179249,221.11,221.1,2.40913612]
[1758556857483,6.43179249,221.11,221.1,2.40913612]
[1758556857679,0.1,221.14,221.1,2.40913612]
[1758556857899,35.2,221.13,221.11,0.7]
[1758556858086,0.1,221.14,221.11,0.7]
[1758556858495,35.2,221.13,221.11,0.7]
[1758556858896,0.1,221.14,221.11,0.7]
[1758556859095,35.2,221.13,221.11,0.7]
[1758556860807,0.1,221.14,221.12,1.60269485]
[1758556860995,0.1,221.14,221.13,2.30269485]
[1758556861190,0.1,221.14,221.13,0.7]
[1758556866715,0.1,221.14,221.13,2.30269485]
[1758556867394,0.1,221.14,221.13,0.7]
[1758556868391,0.1,221.14,221.13,6.82492159]
[1758556868591,0.1,221.14,221.13,20.4205156]
[1758556869607,0.1,221.14,221.13,18.81782075]
[1758556870007,0.1,221.14,221.13,0.7]
[1758556871316,0.1,221.14,221.13,5.22222674]
[1758556872105,0.1,221.14,221.13,18.81782075]
[1758556872815,0.1,221.14,221.13,5.22222674]
[1758556873716,0.1,221.14,221.13,18.81782075]
[1758556875318,0.1,221.14,221.13,23.34782075]
[1758556875519,0.1,221.14,221.13,18.81782075]
[1758556876413,0.1,221.14,221.13,23.34782075]
[1758556876713,0.1,221.14,221.13,18.81782075]
[1758556877726,0.1,221.14,221.13,23.34782075]
[1758556877911,0.1,221.14,221.13,58.50782075]
[1758556878532,0.1,221.17,221.16,30.53]
[1758556878911,1e-08,221.17,221.16,44.83559401]
[1758556879111,1e-08,221.17,221.16,45.28775534]
[1758556879414,1e-08,221.17,221.16,47.65230972]
[1758556879623,1e-08,221.17,221.16,52.17392303]
[1758556880930,0.1,221.23,221.21,4.53]
[1758556881131,0.1,221.23,221.22,39.69]
[1758556881428,0.1,221.23,221.22,65.69]
[1758556881722,0.1,221.23,221.22,79.99559401]
[1758556882247,0.1,221.23,221.22,84.51598095]
[1758556883303,0.1,221.23,221.22,49.35598095]
[1758556883515,0.1,221.23,221.22,84.49598095]
[1758556883733,0.1,221.23,221.22,49.35598095]
[1758556883945,0.1,221.23,221.22,84.49598095]
[1758556888824,0.1,221.23,221.22,49.35598095]
[1758556889136,0.1,221.23,221.22,84.49598095]
[1758556889344,0.1,221.23,221.22,49.35598095]
[1758556889838,0.1,221.23,221.22,84.49598095]
[1758556890240,1e-08,221.23,221.22,84.94801964]
[1758556891919,1e-08,221.23,221.22,84.49598095]
[1758556892316,0.1,221.32,221.22,84.49598095]
[1758556892521,28.36355641,221.4,221.27,13.59559401]
[1758556892720,28.36355641,221.4,221.29,13.59559401]
[1758556892922,28.36355641,221.4,221.3,35.14]
[1758556893421,2.36355641,221.4,221.31,4.51854864]
[1758556894022,28.36355641,221.4,221.31,4.51854864]
[1758556894225,2.36355641,221.4,221.32,48.73559401]
[1758556894652,2.36355641,221.4,221.33,0.71]
[1758556894820,2.36355641,221.4,221.34,35.12]
[1758556895821,2.36355641,221.4,221.32,18.11393321]
[1758556896023,2.36355641,221.4,221.33,35.12]
[1758556897417,2.36355641,221.4,221.33,39.63801161]
[1758556898034,2.36355641,221.4,221.32,13.59559401]
[1758556898244,2.36355641,221.4,221.33,35.12]
[1758556899548,2.36355641,221.4,221.33,39.6381296]
[1758556900243,2.36355641,221.4,221.32,22.64393021]
[1758556900440,2.36355641,221.4,221.33,35.12]
[1758556901648,2.36355641,221.4,221.34,35.12]
[1758556905944,2.36355641,221.4,221.34,35.83]
[1758556906446,0.65,221.44,221.35,14.30559401]
[1758556907144,0.65,221.44,221.35,49.42559401]
[1758556907446,0.65,221.44,221.35,58.4733261]
[1758556907654,0.65,221.44,221.35,53.9433261]
[1758556907957,0.1,221.46,221.35,14.30559401]
[1758556907958,0.65,221.42,221.35,14.30559401]
[1758556908332,0.65,221.41,221.35,48.71559401]
[1758556908737,0.65,221.41,221.35,49.42559401]
[1758556908947,0.65,221.41,221.35,53.9433261]
[1758556909833,0.65,221.41,221.35,13.59559401]
[1758556910157,0.65,221.41,221.35,48.71559401]
[1758556910359,0.65,221.43,221.35,53.9433261]
[1758556911463,0.1,221.46,221.35,53.9433261]
[1758556911642,0.65,221.42,221.35,53.9433261]
[1758556912346,0.65,221.42,221.35,53.9233261]
[1758556912739,0.65,221.42,221.35,53.2133261]
[1758556913141,0.65,221.42,221.35,53.9233261]
[1758556914057,0.65,221.42,221.35,48.69559401]
[1758556914238,0.65,221.42,221.35,49.40559401]
[1758556915667,0.1,221.46,221.35,53.9233261]
[1758556915838,0.65,221.44,221.35,58.4533261]
[1758556916048,0.65,221.43,221.35,58.4533261]
[1758556916736,0.65,221.43,221.35,23.3533261]
[1758556916943,0.65,221.43,221.35,58.4533261]
[1758556917362,0.65,221.43,221.35,23.3533261]
[1758556917563,0.75,221.36,221.34,1.80717448]
[1758556917865,0.65,221.35,221.34,1.80717448]
[1758556921669,0.65,221.35,221.34,1.64144573]
[1758556921866,0.65,221.35,221.34,1.60829998]
[1758556924649,26.65,221.35,221.34,1.60829998]
[1758556925051,0.65,221.35,221.34,1.60829998]
[1758556925470,0.1,221.36,221.34,1.60829998]
[1758556926070,0.1,221.36,221.34,2.27829998]
[1758556926264,0.1,221.36,221.34,1.60829998]
[1758556926569,0.1,221.36,221.34,2.27829998]
[1758556926956,0.1,221.36,221.34,1.60829998]
[1758556927372,0.1,221.36,221.34,2.27829998]
[1758556927671,0.1,221.36,221.35,0.67]
[1758556929650,0.1,221.36,221.34,1.60829998]
[1758556930057,0.1,221.36,221.35,4.53]
[1758556930255,0.1,221.36,221.34,1.60829998]
[1758556930459,0.1,221.36,221.34,2.27829998]
[1758556930759,0.1,221.36,221.35,0.67]
[1758556930967,0.1,221.36,221.34,1.60829998]
[1758556931166,0.1,221.36,221.35,0.67]
[1758556931854,0.1,221.36,221.34,1.60829998]
[1758556932266,0.1,221.36,221.35,0.67]
[1758556933696,0.1,221.36,221.34,1.60829998]
[1758556933865,0.1,221.36,221.34,2.27829998]
[1758556934176,0.1,221.36,221.35,0.67]
[1758556935283,0.1,221.36,221.35,14.26559401]
[1758556935487,0.1,221.36,221.35,23.3133261]
[1758556941967,0.1,221.36,221.35,18.7833261]
[1758556942167,0.1,221.36,221.35,53.2133261]
[1758556942371,0.1,221.36,221.35,48.69559401]
[1758556942785,0.1,221.36,221.35,62.31255023]
[1758556943301,0.1,221.36,221.34,1.60829998]
[1758556943470,0.65,221.35,221.34,1.60829998]
[1758556943977,5.16773209,221.35,221.34,1.60829998]
[1758556948615,5.16773209,221.35,221.34,1e-08]
[1758556949983,22.13905587,221.35,221.34,1e-08]
[1758556950194,25.17712551,221.35,221.34,1e-08]
[1758556950596,25.65919067,221.35,221.34,1e-08]
[1758556950793,38.96537521,221.35,221.34,1e-08]
[1758556951178,44.54808865,221.35,221.34,1e-08]
[1758556952488,75.89840637,221.35,221.34,1e-08]
[1758556954680,39.59559401,221.23,221.14,0.72]
[1758556954880,26.0,221.19,221.14,0.72]
[1758556955287,26.0,221.19,221.15,0.72]
[1758556955503,26.0,221.19,221.16,0.72]
[1758556956308,4.069084,221.18,221.16,0.72]
[1758556956481,35.12,221.17,221.16,0.72]
[1758556957187,35.12,221.17,221.11,0.2]
[1758556957496,35.12,221.17,221.16,0.72]
[1758556957698,35.12,221.17,221.11,0.2]
[1758556957699,35.12,221.17,221.14,0.72]
[1758556957893,35.12,221.17,221.11,0.2]